[Event "CCT Julius Baer-D2 2024"]
[Site "Online"]
[Date "2024.09.28"]
[Round "51"]
[White "Bok, Benjamin"]
[Black "Yakubboev, Nodirbek"]
[Result "1-0"]
[ECO "D02"]
[WhiteElo "2596"]
[BlackElo "2666"]
[Annotator "TA"]
[PlyCount "149"]
[EventDate "2024.09.25"]
[EventType "swiss"]
[EventCountry "NET"]
[SourceTitle "playchess.com"]
[Source "ChessBase"]
[SourceQuality "1"]
[TimeControl "600+2"]

{[%evp 60,149,397,292,304,276,387,372,412,381,453,328,304,197,197,215,199,159,158,0,203,170,183,168,357,357,356,336,350,349,342,281,340,333,333,0,329,0,278,282,285,216,654,676,676,663,345,551,551,543,513,482,511,478,1850,1862,1072,1063,991,956,806,768,772,764,749,652,1218,1166,1361,1155,6057,5782,29970,5612,29971,29976,29983,29984,29984,29985,29985,29986,29990,29986,29989,29989,29989,29990,29990,29990,29991,29984]} 1. Nf3 {[%emt 0:00:04]} d5 {[%emt 0:00:19]} 2. g3 {[%emt 0:00:04]} Nc6 {[%emt 0:00:40]} 3. d4 {[%emt 0:00:02]} Bf5 {[%emt 0:00:03]} 4. Bg2 {[%emt 0:00:13]} e6 {[%emt 0:00:03]} 5. O-O {[%emt 0:00:08]} Nf6 {[%emt 0:00:06]} 6. c4 {[%emt 0:00:06]} h6 {[%emt 0:00:22] D02: 1 d4 d5 2 Nf3 sidelines, including 2...Nf6 3 g3 and 2...Nf6 3 Bf4.} 7. Nc3 {[%emt 0:00:05]} Bd6 {[%emt 0:00:45]} 8. cxd5 {[%emt 0:03:57]} exd5 {[%emt 0:00:03]} 9. Nb5 {[%emt 0:00:07]} O-O {[%emt 0:00:26]} 10. Nxd6 {[%emt 0:00:03]} cxd6 {[%emt 0:00:02]} 11. Be3 $146 {[%emt 0:00:42]} ({Predecessor:} 11. Qb3 Na5 12. Qa4 Qb6 13. b3 Nc6 14. Bd2 a6 15. Rfc1 Qd8 16. Qa3 Qd7 17. Qb2 {½-½ Ozenir,E (2391)-Stremavicius,T (2563) US Masters op 2023 (3)}) 11... Qd7 {[%emt 0:00:04]} 12. Qb3 {[%emt 0:00:18]} Na5 {[%emt 0:00:33]} 13. Qc3 {[%emt 0:00:21]} Nc4 {[%emt 0:00:52]} 14. b3 {[%emt 0:00:50]} Na3 {[%emt 0:01:26]} 15. Rac1 {[%emt 0:00:24]} Rfc8 {[%emt 0:00:05]} 16. Qb2 {[%emt 0:00:06]} Nc2 {[%emt 0:00:26]} 17. Bd2 {[%emt 0:00:02]} Qb5 {[%emt 0:00:04]} 18. Nh4 {[%emt 0:01:58]} Bh7 {[%emt 0:00:04]} 19. Bh3 {[%emt 0:00:11]} Qxe2 {[%emt 0:00:36]} 20. Bxc8 {[%emt 0:00:06]} Rxc8 {[%emt 0:00:04]} 21. Be3 {[%emt 0:00:25]} g5 {[%emt 0:01:36]} 22. Ng2 {[%emt 0:00:02]} Be4 {[%emt 0:00:23]} 23. f3 {[%emt 0:00:05]} Bg6 {[%emt 0:01:21]} 24. Rf2 {[%emt 0:00:02]} Qd3 {[%emt 0:00:01]} 25. Rd2 {[%emt 0:00:08]} Qf5 {[%emt 0:00:02]} 26. g4 {[%emt 0:00:12]} Qxf3 {[%emt 0:00:01]} 27. Rf2 {[%emt 0:00:03]} Qxg4 {[%emt 0:00:23]} 28. Rxf6 {[%emt 0:00:00]} Be4 {[%emt 0:00:02]} 29. Rf2 {[%emt 0:00:01]} Nxe3 {[%emt 0:00:03]} 30. Rxc8+ {[%emt 0:00:02]} Kg7 {[%emt 0:00:00]} (30... Qxc8 {might work better.} 31. Nxe3 f5) 31. Qe2 {[%emt 0:00:02]} Qxc8 {[%emt 0:00:04]} 32. Qxe3 {[%emt 0:00:07]} Qg4 {[%emt 0:00:02]} (32... f5 $142 33. h4 Qd8 34. hxg5 hxg5) 33. h3 $18 {[%emt 0:00:01]} Qd1+ {[%emt 0:00:01]} 34. Kh2 {[%emt 0:00:02]} f6 {[%emt 0:00:02]} 35. h4 {[%emt 0:00:03]} Kg6 {[%emt 0:00:04]} 36. hxg5 {[%emt 0:00:01]} hxg5 {[%emt 0:00:01]} 37. Qg3 {[%emt 0:00:05]} Qh5+ {[%emt 0:00:02]} 38. Kg1 {[%emt 0:00:02]} Qd1+ {[%emt 0:00:01]} 39. Kh2 {[%emt 0:00:02]} Qh5+ $1 {[%emt 0:00:01]} 40. Qh3 {[%emt 0:00:01]} Qd1 {[%emt 0:00:01]} 41. Qh8 {[%emt 0:00:02]} f5 $2 {[%emt 0:00:01]} (41... Qxd4 42. Qe8+ Kg7) 42. Qg8+ $18 {[%emt 0:00:02]} Kf6 {[%emt 0:00:01]} 43. Qf8+ {[%emt 0:00:01]} Kg6 {[%emt 0:00:02]} 44. Qxd6+ {[%emt 0:00:01]} Kg7 {[%emt 0:00:01]} 45. Qg3 {[%emt 0:00:02]} Kf6 {[%emt 0:00:01]} 46. Qe5+ {[%emt 0:00:04]} Kg6 {[%emt 0:00:02]} 47. Qd6+ {[%emt 0:00:01]} Kg7 $1 {[%emt 0:00:01]} 48. Qg3 {[%emt 0:00:01]} Kf6 $1 {[%emt 0:00:01]} 49. Qh3 {[%emt 0:00:03]} Kg6 {[%emt 0:00:03]} 50. Qe3 {[%emt 0:00:07]} f4 $2 {[%emt 0:00:02]} (50... Qh5+ 51. Qh3 Qd1) 51. Nxf4+ $18 {[%emt 0:00:03]} gxf4 {[%emt 0:00:02]} 52. Qxf4 {[%emt 0:00:00]} Qh1+ {[%emt 0:00:01]} 53. Kg3 {[%emt 0:00:00]} Qg1+ {[%emt 0:00:01]} 54. Kh3 {[%emt 0:00:04]} Qh1+ {[%emt 0:00:04]} 55. Rh2 {[%emt 0:00:04]} Qb1 {[%emt 0:00:02]} 56. Qg3+ {[%emt 0:00:02]} Kf7 {[%emt 0:00:03]} (56... Kf6 $142 57. Qe5+ Kg6 58. Qe6+ Kg7 59. Qg4+ Kf6 60. Rf2+ Bf5) 57. Rf2+ $18 {[%emt 0:00:01]} Bf5+ {[%emt 0:00:01]} 58. Kh4 {[%emt 0:00:02]} Qe4+ {[%emt 0:00:03]} 59. Kg5 {[%emt 0:00:01]} Ke6 {[%emt 0:00:01]} 60. Qe5+ {[%emt 0:00:03]} Qxe5 {[%emt 0:00:00]} 61. dxe5 {[%emt 0:00:00]} Be4 {[%emt 0:00:01]} 62. Kf4 {[%emt 0:00:01]} a5 {[%emt 0:00:03]} 63. Rh2 {[%emt 0:00:01]} Bb1 {[%emt 0:00:03]} 64. a3 {[%emt 0:00:02]} d4 {[%emt 0:00:01]} 65. Rh6+ {[%emt 0:00:02]} Kd5 {[%emt 0:00:01]} 66. Rd6+ {[%emt 0:00:01]} Kc5 {[%emt 0:00:00]} 67. Rd8 {[%emt 0:00:02]} Ba2 {[%emt 0:00:03]} 68. e6 {[%emt 0:00:04]} Bxb3 {[%emt 0:00:00]} 69. e7 {[%emt 0:00:00]} Ba4 {[%emt 0:00:01]} 70. Ke5 {[%emt 0:00:03]} Bc6 {[%emt 0:00:03]} 71. Rxd4 {[%emt 0:00:02]} b5 {[%emt 0:00:01]} 72. Rd6 {[%emt 0:00:02]} Be8 {[%emt 0:00:01]} 73. Rd8 {[%emt 0:00:01]} Bh5 {[%emt 0:00:02]} 74. Rc8+ {[%emt 0:00:02]} Kb6 {[%emt 0:00:01]} 75. Kd4 {[%emt 0:00:02]} 1-0

[Event "CCT Julius Baer-D2 2024"]
[Site "Online"]
[Date "2024.09.28"]
[Round "51"]
[White "Le, Tuan Minh"]
[Black "Bortnyk, Olexandr"]
[Result "0-1"]
[ECO "E60"]
[WhiteElo "2564"]
[BlackElo "2608"]
[Annotator "TA"]
[PlyCount "50"]
[EventDate "2024.09.25"]
[EventType "swiss"]
[EventCountry "NET"]
[SourceTitle "playchess.com"]
[Source "ChessBase"]
[SourceQuality "1"]
[TimeControl "600+2"]

{[%evp 17,50,11,0,0,14,37,18,-24,-35,-52,-50,-52,-39,-69,-95,-133,-102,-208,-218,-183,-168,-167,-152,-373,-354,-549,-525,-608,-618,-600,-312,-970,-971,-1077,-1050]} 1. d4 {[%emt 0:00:04]} Nf6 {[%emt 0:00:07]} 2. c4 {[%emt 0:00:01]} g6 {[%emt 0:00:21]} 3. Nf3 {[%emt 0:00:02]} Bg7 {[%emt 0:00:03]} 4. g3 {[%emt 0:00:01]} d6 {[%emt 0:00:02]} 5. Bg2 {[%emt 0:00:00]} O-O {[%emt 0:00:02]} 6. O-O {[%emt 0:00:01]} Bf5 {[%emt 0:00:00]} 7. Nc3 {[%emt 0:00:06]} Ne4 {[%emt 0:00:02]} 8. Nh4 {[%emt 0:00:11]} Nxc3 {[%emt 0:00:02]} 9. bxc3 {[%emt 0:00:00]} Bc8 {[%emt 0:00:00]} 10. f4 {[%emt 0:00:01]} Nc6 {[%emt 0:01:11]} 11. f5 {[%emt 0:00:03]} e5 {[%emt 0:00:02][%cal Re5d4]} 12. fxg6 {[%emt 0:02:14] The position is equal.} fxg6 {[%emt 0:00:37][%cal Re5d4]} 13. Rxf8+ {[%emt 0:01:45]} Qxf8 {[%emt 0:00:03]} 14. e3 {[%emt 0:00:00]} Qe7 {[%emt 0:01:02]} 15. Rb1 {[%emt 0:00:08]} e4 {[%emt 0:00:12] Threatens to win with ...g5.} 16. Qf1 {[%emt 0:00:34]} Bd7 {[%emt 0:00:27] aiming for ...Rf8.} 17. Bh1 {[%emt 0:01:07]} (17. Qf4 $17 {is a better defense.} Re8 (17... g5 18. Qxe4 Qxe4 19. Bxe4 $17) 18. Rxb7) 17... Rf8 {[%emt 0:00:09]} 18. Qe2 {[%emt 0:00:02]} g5 {[%emt 0:00:10]} 19. Ng2 {[%emt 0:00:02]} Qf7 {[%emt 0:00:39] Strongly threatening ...Be6.} 20. Ba3 $2 {[%emt 0:01:21] [#] White is weak on the light squares. Now White is beyond hope.} (20. h4 $17) 20... Bg4 $1 $19 {[%emt 0:00:28][%mdl 512]} 21. Qc2 {[%emt 0:00:01]} (21. Qf1 $142 Qh5 22. Qe1) (21. Qe1 b6) 21... Na5 {[%emt 0:00:27]} 22. Re1 {[%emt 0:00:21]} Nxc4 {[%emt 0:00:05]} 23. Bc1 {[%emt 0:00:00]} Bh3 {[%emt 0:00:07]} 24. g4 $2 {[%emt 0:00:28]} (24. Qe2) 24... d5 {[%emt 0:00:14]} 25. Qe2 {[%emt 0:00:20] [#]} Bxg4 $1 {[%emt 0:00:08][%mdl 512] Weighted Error Value: White=0.87/Black=0.28 (precise) .  Loses game:     	White=1     	---        Mistake:       	White=2     	---        Inaccurate:     	White=3     	---        OK:         	White=5     	Black=7      Best:        	---       	Black=1} 0-1